[Event "Titled Tuesday Blitz February 07 Early 2023"]
[White "Alinasab, Mobina"]
[Black "Mesa Cruz, Juan Carlos"]
[WhiteFideId "12528897"]
[BlackFideId "6423400"]
[WhiteElo "2347"]
[BlackElo "2122"]
[Result "1/2-1/2"]
[Round "08"]
[TimeControl "180+2"]
[Date "2023.02.07"]
[WhiteClock "0:00:04"]
[BlackClock "0:00:17"]

1. e4 {[%clk 0:03:00]}  c5 {[%clk 0:02:59]} 2. Nf3 {[%clk 0:02:50]}  d6 {[%clk 0:02:56]} 3. d4 {[%clk 0:02:48]}  cxd4 {[%clk 0:02:57]} 4. Nxd4 {[%clk 0:02:48]}  Nf6 {[%clk 0:02:57]} 5. Nc3 {[%clk 0:02:49]}  a6 {[%clk 0:02:57]} 6. g3 {[%clk 0:02:46]}  e5 {[%clk 0:02:56]} 7. Nde2 {[%clk 0:02:43]}  Be6 {[%clk 0:02:55]} 8. Bg2 {[%clk 0:02:44]}  Be7 {[%clk 0:02:54]} 9. O-O {[%clk 0:02:44]}  O-O {[%clk 0:02:55]} 10. h3 {[%clk 0:02:42]}  Nbd7 {[%clk 0:02:48]} 11. Be3 {[%clk 0:02:41]}  Nb6 {[%clk 0:02:47]} 12. b3 {[%clk 0:02:41]}  Rc8 {[%clk 0:02:34]} 13. Qd2 {[%clk 0:02:23]}  Qc7 {[%clk 0:02:23]} 14. Rac1 {[%clk 0:02:17]}  Rfd8 {[%clk 0:02:21]} 15. Nd5 {[%clk 0:02:08]}  Nbxd5 {[%clk 0:01:59]} 16. exd5 {[%clk 0:02:09]}  Bf5 {[%clk 0:01:59]} 17. c4 {[%clk 0:02:02]}  b6 {[%clk 0:01:59]} 18. Nc3 {[%clk 0:01:58]}  Qb7 {[%clk 0:01:58]} 19. g4 {[%clk 0:01:40]}  Bg6 {[%clk 0:01:54]} 20. Na4 {[%clk 0:01:30]}  b5 {[%clk 0:01:45]} 21. Nb6 {[%clk 0:00:51]}  Rb8 {[%clk 0:01:39]} 22. cxb5 {[%clk 0:00:51]}  axb5 {[%clk 0:01:38]} 23. Rc6 {[%clk 0:00:50]}  Nd7 {[%clk 0:01:19]} 24. Rfc1 {[%clk 0:00:46]}  Nxb6 {[%clk 0:01:15]} 25. Rxb6 {[%clk 0:00:47]}  Qa8 {[%clk 0:01:15]} 26. Rxb8 {[%clk 0:00:41]}  Rxb8 {[%clk 0:01:12]} 27. Rc6 {[%clk 0:00:41]}  f6 {[%clk 0:01:08]} 28. f4 {[%clk 0:00:40]}  Be8 {[%clk 0:01:08]} 29. fxe5 {[%clk 0:00:35]}  fxe5 {[%clk 0:01:04]} 30. Be4 {[%clk 0:00:31]}  Rc8 {[%clk 0:00:52]} 31. Rxc8 {[%clk 0:00:26]}  Qxc8 {[%clk 0:00:51]} 32. Qd3 {[%clk 0:00:24]}  g6 {[%clk 0:00:45]} 33. Qc2 {[%clk 0:00:24]}  Qb7 {[%clk 0:00:39]} 34. Kg2 {[%clk 0:00:21]}  Bd8 {[%clk 0:00:37]} 35. Kf3 {[%clk 0:00:20]}  Bf7 {[%clk 0:00:35]} 36. Qc6 {[%clk 0:00:18]}  Qxc6 {[%clk 0:00:34]} 37. dxc6 {[%clk 0:00:19]}  d5 {[%clk 0:00:34]} 38. Bc2 {[%clk 0:00:17]}  Be8 {[%clk 0:00:33]} 39. a4 {[%clk 0:00:14]}  Bxc6 {[%clk 0:00:29]} 40. axb5 {[%clk 0:00:13]}  Bxb5 {[%clk 0:00:29]} 41. Bc5 {[%clk 0:00:13]}  Bc6 {[%clk 0:00:29]} 42. Ke2 {[%clk 0:00:12]}  d4 {[%clk 0:00:25]} 43. Bd3 {[%clk 0:00:11]}  Bd5 {[%clk 0:00:16]} 44. b4 {[%clk 0:00:10]}  e4 {[%clk 0:00:14]} 45. Ba6 {[%clk 0:00:09]}  d3+ {[%clk 0:00:14]} 46. Kd2 {[%clk 0:00:10]}  Bg5+ {[%clk 0:00:13]} 47. Be3 {[%clk 0:00:08]}  Be7 {[%clk 0:00:13]} 48. Bc5 {[%clk 0:00:06]}  Bg5+ {[%clk 0:00:13]} 49. Be3 {[%clk 0:00:06]}  Be7 {[%clk 0:00:11]} 50. Kc3 {[%clk 0:00:05]}  Bf6+ {[%clk 0:00:10]} 51. Kd2 {[%clk 0:00:05]}  Kf7 {[%clk 0:00:09]} 52. b5 {[%clk 0:00:04]}  Ke6 {[%clk 0:00:03]} 53. b6 {[%clk 0:00:05]}  h5 {[%clk 0:00:02]} 54. gxh5 {[%clk 0:00:04]}  gxh5 {[%clk 0:00:02]} 55. b7 {[%clk 0:00:04]}  Bxb7 {[%clk 0:00:03]} 56. Bxb7 {[%clk 0:00:04]}  Kf5 {[%clk 0:00:04]} 57. Bc8+ {[%clk 0:00:04]}  Ke5 {[%clk 0:00:04]} 58. Bd7 {[%clk 0:00:03]}  Be7 {[%clk 0:00:05]} 59. Be8 {[%clk 0:00:02]}  Bb4+ {[%clk 0:00:05]} 60. Kd1 {[%clk 0:00:03]}  h4 {[%clk 0:00:05]} 61. Bh5 {[%clk 0:00:03]}  Bc3 {[%clk 0:00:05]} 62. Bg4 {[%clk 0:00:03]}  d2 {[%clk 0:00:06]} 63. Bxd2 {[%clk 0:00:03]}  Bxd2 {[%clk 0:00:05]} 64. Kxd2 {[%clk 0:00:04]}  Kf4 {[%clk 0:00:06]} 65. Ke2 {[%clk 0:00:04]}  e3 {[%clk 0:00:06]} 66. Bf3 {[%clk 0:00:04]}  Kg3 {[%clk 0:00:06]} 67. Bg4 {[%clk 0:00:04]}  Kf4 {[%clk 0:00:06]} 68. Bc8 {[%clk 0:00:05]}  Ke4 {[%clk 0:00:06]} 69. Bd7 {[%clk 0:00:03]}  Kf4 {[%clk 0:00:07]} 70. Bg4 {[%clk 0:00:02]}  Ke4 {[%clk 0:00:07]} 71. Bh5 {[%clk 0:00:02]}  Kf4 {[%clk 0:00:08]} 72. Kd3 {[%clk 0:00:03]}  Kg3 {[%clk 0:00:07]} 73. Bg4 {[%clk 0:00:03]}  Kf4 {[%clk 0:00:05]} 74. Kd4 {[%clk 0:00:01]}  e2 {[%clk 0:00:03]} 75. Bxe2 {[%clk 0:00:01]}  Kg3 {[%clk 0:00:03]} 76. Bg4 {[%clk 0:00:02]}  Kf4 {[%clk 0:00:03]} 77. Kd5 {[%clk 0:00:02]}  Kg5 {[%clk 0:00:04]} 78. Ke6 {[%clk 0:00:02]}  Kg6 {[%clk 0:00:04]} 79. Ke5 {[%clk 0:00:03]}  Kg5 {[%clk 0:00:04]} 80. Bf5 {[%clk 0:00:03]}  Kh6 {[%clk 0:00:04]} 81. Kf4 {[%clk 0:00:04]}  Kg7 {[%clk 0:00:04]} 82. Kg5 {[%clk 0:00:04]}  Kh8 {[%clk 0:00:05]} 83. Kxh4 {[%clk 0:00:04]}  Kg8 {[%clk 0:00:06]} 84. Kg5 {[%clk 0:00:05]}  Kh8 {[%clk 0:00:07]} 85. h4 {[%clk 0:00:06]}  Kg8 {[%clk 0:00:08]} 86. h5 {[%clk 0:00:07]}  Kh8 {[%clk 0:00:09]} 87. Kg6 {[%clk 0:00:06]}  Kg8 {[%clk 0:00:10]} 88. Bg4 {[%clk 0:00:05]}  Kh8 {[%clk 0:00:11]} 89. Kg5 {[%clk 0:00:05]}  Kg8 {[%clk 0:00:12]} 90. Bf5 {[%clk 0:00:05]}  Kh8 {[%clk 0:00:12]} 91. Be6 {[%clk 0:00:05]}  Kh7 {[%clk 0:00:12]} 92. Kf6 {[%clk 0:00:04]}  Kh8 {[%clk 0:00:13]} 93. Kf7 {[%clk 0:00:04]}  Kh7 {[%clk 0:00:14]} 94. Bf5+ {[%clk 0:00:05]}  Kh8 {[%clk 0:00:15]} 95. Kg6 {[%clk 0:00:03]}  Kg8 {[%clk 0:00:16]} 96. h6 {[%clk 0:00:04]}  Kh8 {[%clk 0:00:17]} 97. h7 {[%clk 0:00:04]} 1/2-1/2


[Site "https://www.chess.com"]

[Event "Titled Tuesday Blitz February 07 Early 2023"]
[White "Goncalves, Davi Sulzbacher"]
[Black "Brilej, Jaka"]
[WhiteFideId "2154510"]
[BlackFideId "14618818"]
[WhiteElo "2282"]
[BlackElo "2321"]
[Result "0-1"]
[Round "08"]
[TimeControl "180+2"]
[Date "2023.02.07"]
[WhiteClock "0:00:02"]
[BlackClock "0:00:11"]

1. d4 {[%clk 0:03:00]}  d5 {[%clk 0:02:58]} 2. Nf3 {[%clk 0:03:01]}  Nf6 {[%clk 0:02:57]} 3. Bg5 {[%clk 0:03:01]}  e6 {[%clk 0:02:46]} 4. e3 {[%clk 0:03:01]}  Be7 {[%clk 0:02:42]} 5. c4 {[%clk 0:02:59]}  Ne4 {[%clk 0:02:29]} 6. Bxe7 {[%clk 0:02:53]}  Qxe7 {[%clk 0:02:30]} 7. Nc3 {[%clk 0:02:53]}  Nxc3 {[%clk 0:02:28]} 8. bxc3 {[%clk 0:02:53]}  O-O {[%clk 0:02:28]} 9. Bd3 {[%clk 0:02:47]}  b6 {[%clk 0:02:22]} 10. cxd5 {[%clk 0:02:46]}  exd5 {[%clk 0:02:21]} 11. O-O {[%clk 0:02:46]}  Bg4 {[%clk 0:02:18]} 12. h3 {[%clk 0:02:41]}  Bh5 {[%clk 0:02:17]} 13. c4 {[%clk 0:02:33]}  dxc4 {[%clk 0:02:10]} 14. Bxc4 {[%clk 0:02:33]}  Nd7 {[%clk 0:02:11]} 15. Rc1 {[%clk 0:02:26]}  c5 {[%clk 0:02:10]} 16. d5 {[%clk 0:01:55]}  Rad8 {[%clk 0:02:06]} 17. d6 {[%clk 0:01:35]}  Qf6 {[%clk 0:02:03]} 18. g4 {[%clk 0:01:34]}  Bg6 {[%clk 0:02:01]} 19. Qd5 {[%clk 0:01:33]}  Rfe8 {[%clk 0:01:51]} 20. g5 {[%clk 0:01:32]}  Qf5 {[%clk 0:01:48]} 21. Qxf5 {[%clk 0:01:32]}  Bxf5 {[%clk 0:01:49]} 22. Kg2 {[%clk 0:01:29]}  Be4 {[%clk 0:01:49]} 23. Kg3 {[%clk 0:01:15]}  Bxf3 {[%clk 0:01:47]} 24. Kxf3 {[%clk 0:01:14]}  Ne5+ {[%clk 0:01:47]} 25. Kf4 {[%clk 0:01:12]}  Rxd6 {[%clk 0:01:43]} 26. Bb5 {[%clk 0:01:13]}  Ng6+ {[%clk 0:01:27]} 27. Kg3 {[%clk 0:01:12]}  Red8 {[%clk 0:01:28]} 28. f4 {[%clk 0:01:06]}  Ne7 {[%clk 0:01:27]} 29. e4 {[%clk 0:01:03]}  Rd4 {[%clk 0:01:21]} 30. Rfe1 {[%clk 0:00:51]}  g6 {[%clk 0:01:18]} 31. h4 {[%clk 0:00:46]}  Nc8 {[%clk 0:01:09]} 32. f5 {[%clk 0:00:42]}  Nd6 {[%clk 0:01:07]} 33. Bc6 {[%clk 0:00:37]}  gxf5 {[%clk 0:01:03]} 34. e5 {[%clk 0:00:26]}  Ne4+ {[%clk 0:00:53]} 35. Bxe4 {[%clk 0:00:20]}  Rxe4 {[%clk 0:00:48]} 36. Rxe4 {[%clk 0:00:20]}  fxe4 {[%clk 0:00:49]} 37. Kf4 {[%clk 0:00:21]}  Rd4 {[%clk 0:00:48]} 38. h5 {[%clk 0:00:21]}  Kf8 {[%clk 0:00:45]} 39. e6 {[%clk 0:00:18]}  fxe6 {[%clk 0:00:43]} 40. Rf1 {[%clk 0:00:14]}  Kg7 {[%clk 0:00:37]} 41. Ke5 {[%clk 0:00:13]}  Rd5+ {[%clk 0:00:37]} 42. Kxe6 {[%clk 0:00:14]}  Rxg5 {[%clk 0:00:37]} 43. Rf7+ {[%clk 0:00:09]}  Kh6 {[%clk 0:00:33]} 44. Kf6 {[%clk 0:00:10]}  Rxh5 {[%clk 0:00:28]} 45. Rxa7 {[%clk 0:00:10]}  Rg5 {[%clk 0:00:22]} 46. a4 {[%clk 0:00:07]}  Rg6+ {[%clk 0:00:22]} 47. Kf5 {[%clk 0:00:08]}  e3 {[%clk 0:00:22]} 48. Re7 {[%clk 0:00:08]}  Rc6 {[%clk 0:00:15]} 49. Rxe3 {[%clk 0:00:07]}  c4 {[%clk 0:00:15]} 50. Rc3 {[%clk 0:00:06]}  Kg7 {[%clk 0:00:15]} 51. Ke5 {[%clk 0:00:05]}  h5 {[%clk 0:00:16]} 52. Kd5 {[%clk 0:00:05]}  Rc5+ {[%clk 0:00:16]} 53. Kd4 {[%clk 0:00:03]}  Kg6 {[%clk 0:00:16]} 54. Rg3+ {[%clk 0:00:03]}  Kh6 {[%clk 0:00:16]} 55. Kc3 {[%clk 0:00:04]}  h4 {[%clk 0:00:16]} 56. Rg8 {[%clk 0:00:04]}  Kh5 {[%clk 0:00:13]} 57. Rh8+ {[%clk 0:00:03]}  Kg4 {[%clk 0:00:13]} 58. Rg8+ {[%clk 0:00:04]}  Kh3 {[%clk 0:00:13]} 59. Rh8 {[%clk 0:00:03]}  Kg3 {[%clk 0:00:13]} 60. Rg8+ {[%clk 0:00:04]}  Kh2 {[%clk 0:00:13]} 61. Rg6 {[%clk 0:00:04]}  Ra5 {[%clk 0:00:10]} 62. Kb4 {[%clk 0:00:03]}  c3 {[%clk 0:00:08]} 63. Rxb6 {[%clk 0:00:03]}  Rf5 {[%clk 0:00:05]} 64. Rc6 {[%clk 0:00:03]}  Rf4+ {[%clk 0:00:05]} 65. Kxc3 {[%clk 0:00:03]}  Rxa4 {[%clk 0:00:05]} 66. Kd2 {[%clk 0:00:03]}  Re4 {[%clk 0:00:03]} 67. Rg6 {[%clk 0:00:02]}  h3 {[%clk 0:00:03]} 68. Rg8 {[%clk 0:00:03]}  Kh1 {[%clk 0:00:03]} 69. Rg7 {[%clk 0:00:03]}  h2 {[%clk 0:00:03]} 70. Rg8 {[%clk 0:00:04]}  Re7 {[%clk 0:00:03]} 71. Rg6 {[%clk 0:00:03]}  Re8 {[%clk 0:00:04]} 72. Rg7 {[%clk 0:00:03]}  Ra8 {[%clk 0:00:04]} 73. Ke2 {[%clk 0:00:03]}  Ra1 {[%clk 0:00:05]} 74. Kf2 {[%clk 0:00:04]}  Rg1 {[%clk 0:00:05]} 75. Rh7 {[%clk 0:00:04]}  Rg6 {[%clk 0:00:05]} 76. Kf1 {[%clk 0:00:04]}  Rf6+ {[%clk 0:00:05]} 77. Ke2 {[%clk 0:00:05]}  Rf5 {[%clk 0:00:03]} 78. Rg7 {[%clk 0:00:04]}  Rf6 {[%clk 0:00:03]} 79. Rg8 {[%clk 0:00:04]}  Rf5 {[%clk 0:00:03]} 80. Rg7 {[%clk 0:00:04]}  Rf4 {[%clk 0:00:03]} 81. Rg6 {[%clk 0:00:05]}  Ra4 {[%clk 0:00:04]} 82. Kf2 {[%clk 0:00:04]}  Ra1 {[%clk 0:00:04]} 83. Rg7 {[%clk 0:00:04]}  Rg1 {[%clk 0:00:05]} 84. Rh7 {[%clk 0:00:04]}  Rg6 {[%clk 0:00:05]} 85. Rh8 {[%clk 0:00:04]}  Rf6+ {[%clk 0:00:05]} 86. Ke2 {[%clk 0:00:05]}  Kg2 {[%clk 0:00:05]} 87. Rg8+ {[%clk 0:00:05]}  Kh3 {[%clk 0:00:05]} 88. Rh8+ {[%clk 0:00:05]}  Kg3 {[%clk 0:00:05]} 89. Rg8+ {[%clk 0:00:06]}  Kh3 {[%clk 0:00:06]} 90. Rh8+ {[%clk 0:00:06]}  Kg2 {[%clk 0:00:06]} 91. Rg8+ {[%clk 0:00:06]}  Kh1 {[%clk 0:00:07]} 92. Rg7 {[%clk 0:00:06]}  Ra6 {[%clk 0:00:07]} 93. Kf2 {[%clk 0:00:06]}  Ra1 {[%clk 0:00:08]} 94. Rg8 {[%clk 0:00:05]}  Rg1 {[%clk 0:00:09]} 95. Rh8 {[%clk 0:00:05]}  Rg5 {[%clk 0:00:09]} 96. Rh6 {[%clk 0:00:05]}  Rf5+ {[%clk 0:00:09]} 97. Ke2 {[%clk 0:00:05]}  Kg2 {[%clk 0:00:10]} 98. Rg6+ {[%clk 0:00:05]}  Kh3 {[%clk 0:00:10]} 99. Rh6+ {[%clk 0:00:06]}  Kg3 {[%clk 0:00:11]} 100. Rh8 {[%clk 0:00:04]}  Rf4 {[%clk 0:00:11]} 101. Rg8+ {[%clk 0:00:02]}  Rg4 {[%clk 0:00:11]} 102. Rh8 {[%clk 0:00:01]}  Rh4 {[%clk 0:00:11]} 103. Rg8+ {[%clk 0:00:01]}  Kf4 {[%clk 0:00:11]} 104. Rf8+ {[%clk 0:00:01]}  Ke5 {[%clk 0:00:11]} 105. Rf1 {[%clk 0:00:02]}  h1=Q {[%clk 0:00:11]} 0-1


[Site "https://www.chess.com"]

[Event "Titled Tuesday Blitz February 07 Early 2023"]
[White "Foerster-Yialamas, Lucas"]
[Black "Lehtosaari, Mauri"]
[WhiteFideId "30901774"]
[BlackFideId "501999"]
[WhiteElo "2151"]
[BlackElo "2176"]
[Result "1-0"]
[Round "08"]
[TimeControl "180+2"]
[Date "2023.02.07"]
[WhiteClock "0:01:51"]
[BlackClock "0:00:14"]

1. e4 {[%clk 0:03:00]}  c5 {[%clk 0:02:58]} 2. d4 {[%clk 0:02:58]}  cxd4 {[%clk 0:02:57]} 3. c3 {[%clk 0:02:58]}  Nf6 {[%clk 0:02:56]} 4. e5 {[%clk 0:02:56]}  Nd5 {[%clk 0:02:56]} 5. Nf3 {[%clk 0:02:55]}  e6 {[%clk 0:02:55]} 6. c4 {[%clk 0:02:49]}  Ne7 {[%clk 0:02:51]} 7. Nxd4 {[%clk 0:02:47]}  Ng6 {[%clk 0:02:48]} 8. Nc3 {[%clk 0:02:45]}  Nxe5 {[%clk 0:02:06]} 9. Ndb5 {[%clk 0:02:43]}  a6 {[%clk 0:01:59]} 10. Nd6+ {[%clk 0:02:40]}  Bxd6 {[%clk 0:01:58]} 11. Qxd6 {[%clk 0:02:41]}  Nbc6 {[%clk 0:01:48]} 12. f4 {[%clk 0:02:21]}  Ng6 {[%clk 0:01:45]} 13. f5 {[%clk 0:02:15]}  Nge7 {[%clk 0:01:17]} 14. f6 {[%clk 0:02:10]}  gxf6 {[%clk 0:01:12]} 15. Bd3 {[%clk 0:02:10]}  Qa5 {[%clk 0:01:02]} 16. O-O {[%clk 0:02:07]}  Qe5 {[%clk 0:00:59]} 17. Ne4 {[%clk 0:01:57]}  Qxd6 {[%clk 0:00:13]} 18. Nxd6+ {[%clk 0:01:58]}  Kf8 {[%clk 0:00:14]} 19. Bh6+ {[%clk 0:01:54]}  Kg8 {[%clk 0:00:14]} 20. Ne8 {[%clk 0:01:51]} 1-0


[Site "https://www.chess.com"]

[Event "Titled Tuesday Blitz February 07 Early 2023"]
[White "Sputnik-11"]
[Black "Pein, Jonathan"]
[BlackFideId "417092"]
[WhiteElo "2381"]
[BlackElo "2265"]
[Result "0-1"]
[Round "08"]
[TimeControl "180+2"]
[Date "2023.02.07"]
[WhiteClock "0:00:05"]
[BlackClock "0:00:05"]

1. Nf3 {[%clk 0:03:00]}  d6 {[%clk 0:02:57]} 2. c4 {[%clk 0:03:00]}  g6 {[%clk 0:02:57]} 3. g3 {[%clk 0:03:00]}  Bg7 {[%clk 0:02:57]} 4. Bg2 {[%clk 0:03:00]}  e5 {[%clk 0:02:58]} 5. Nc3 {[%clk 0:02:59]}  c5 {[%clk 0:02:57]} 6. O-O {[%clk 0:02:57]}  Ne7 {[%clk 0:02:58]} 7. a3 {[%clk 0:02:56]}  Nbc6 {[%clk 0:02:56]} 8. Ne1 {[%clk 0:02:52]}  O-O {[%clk 0:02:50]} 9. Nc2 {[%clk 0:02:51]}  f5 {[%clk 0:02:46]} 10. Ne3 {[%clk 0:02:50]}  f4 {[%clk 0:02:46]} 11. Ned5 {[%clk 0:02:50]}  Be6 {[%clk 0:02:42]} 12. Rb1 {[%clk 0:02:44]}  Qd7 {[%clk 0:02:38]} 13. b4 {[%clk 0:02:39]}  Bh3 {[%clk 0:02:38]} 14. Bxh3 {[%clk 0:02:22]}  Qxh3 {[%clk 0:02:39]} 15. bxc5 {[%clk 0:02:19]}  Nf5 {[%clk 0:02:32]} 16. Ne4 {[%clk 0:01:56]}  Ncd4 {[%clk 0:02:32]} 17. Ng5 {[%clk 0:01:39]}  Qh5 {[%clk 0:02:32]} 18. Nf3 {[%clk 0:01:34]}  Nxf3+ {[%clk 0:02:31]} 19. exf3 {[%clk 0:01:35]}  Nd4 {[%clk 0:02:32]} 20. Kg2 {[%clk 0:01:33]}  e4 {[%clk 0:02:29]} 21. Rxb7 {[%clk 0:00:45]}  exf3+ {[%clk 0:01:14]} 22. Kh1 {[%clk 0:00:45]}  Qh3 {[%clk 0:01:10]} 23. Rg1 {[%clk 0:00:45]}  Ne2 {[%clk 0:01:01]} 24. cxd6 {[%clk 0:00:13]}  Rae8 {[%clk 0:00:58]} 25. Ne7+ {[%clk 0:00:09]}  Kh8 {[%clk 0:00:54]} 26. Qf1 {[%clk 0:00:06]}  Qh5 {[%clk 0:00:31]} 27. Bb2 {[%clk 0:00:06]}  Bxb2 {[%clk 0:00:27]} 28. Rxb2 {[%clk 0:00:07]}  Qe5 {[%clk 0:00:24]} 29. Rb5 {[%clk 0:00:04]}  Qxd6 {[%clk 0:00:22]} 30. Qa1+ {[%clk 0:00:04]}  Rf6 {[%clk 0:00:20]} 31. Nd5 {[%clk 0:00:03]}  Rf8 {[%clk 0:00:14]} 32. Nxf6 {[%clk 0:00:02]}  Rxf6 {[%clk 0:00:15]} 33. Re5 {[%clk 0:00:02]}  Nxg1 {[%clk 0:00:14]} 34. Re8+ {[%clk 0:00:02]}  Kg7 {[%clk 0:00:14]} 35. Kxg1 {[%clk 0:00:02]}  fxg3 {[%clk 0:00:13]} 36. hxg3 {[%clk 0:00:02]}  Kf7 {[%clk 0:00:10]} 37. Qe1 {[%clk 0:00:03]}  Re6 {[%clk 0:00:01]} 38. Re7+ {[%clk 0:00:03]}  Rxe7 {[%clk 0:00:01]} 39. Qb1 {[%clk 0:00:03]}  Qe6 {[%clk 0:00:01]} 40. Qc2 {[%clk 0:00:02]}  Qe1+ {[%clk 0:00:02]} 41. Kh2 {[%clk 0:00:03]}  Qe4 {[%clk 0:00:02]} 42. Kh3 {[%clk 0:00:04]}  Qxc2 {[%clk 0:00:03]} 43. Kh2 {[%clk 0:00:04]}  Qf5 {[%clk 0:00:03]} 44. Kg1 {[%clk 0:00:04]}  Re2 {[%clk 0:00:04]} 45. Kf1 {[%clk 0:00:04]}  Qh3+ {[%clk 0:00:04]} 46. Kg1 {[%clk 0:00:05]}  Qg2# {[%clk 0:00:05]} 0-1


[Site "https://www.chess.com"]

[Event "Titled Tuesday Blitz February 07 Early 2023"]
[White "Florescu, Codrut-Constantin"]
[Black "Fernandez Siles, Luis"]
[WhiteFideId "1202200"]
[BlackFideId "2209420"]
[WhiteElo "2259"]
[BlackElo "2218"]
[Result "1/2-1/2"]
[Round "08"]
[TimeControl "180+2"]
[Date "2023.02.07"]
[WhiteClock "0:01:34"]
[BlackClock "0:00:26"]

1. e4 {[%clk 0:03:00]}  c5 {[%clk 0:02:59]} 2. Nf3 {[%clk 0:03:00]}  Nc6 {[%clk 0:03:00]} 3. d4 {[%clk 0:03:00]}  cxd4 {[%clk 0:03:01]} 4. Nxd4 {[%clk 0:03:01]}  Nf6 {[%clk 0:03:01]} 5. Nc3 {[%clk 0:03:01]}  e5 {[%clk 0:03:02]} 6. Ndb5 {[%clk 0:03:01]}  d6 {[%clk 0:03:03]} 7. Bg5 {[%clk 0:03:00]}  a6 {[%clk 0:03:03]} 8. Na3 {[%clk 0:03:00]}  b5 {[%clk 0:03:04]} 9. Nd5 {[%clk 0:03:01]}  Be7 {[%clk 0:03:04]} 10. Bxf6 {[%clk 0:03:01]}  Bxf6 {[%clk 0:03:04]} 11. c3 {[%clk 0:03:02]}  O-O {[%clk 0:03:04]} 12. Nc2 {[%clk 0:03:02]}  Rb8 {[%clk 0:03:04]} 13. a3 {[%clk 0:03:00]}  a5 {[%clk 0:03:04]} 14. Be2 {[%clk 0:02:58]}  Bg5 {[%clk 0:03:03]} 15. O-O {[%clk 0:02:56]}  Be6 {[%clk 0:03:01]} 16. b4 {[%clk 0:02:55]}  axb4 {[%clk 0:02:43]} 17. Ncxb4 {[%clk 0:02:52]}  Bxd5 {[%clk 0:02:30]} 18. Nxd5 {[%clk 0:02:49]}  Ne7 {[%clk 0:02:10]} 19. Rb1 {[%clk 0:02:46]}  Nxd5 {[%clk 0:02:07]} 20. Qxd5 {[%clk 0:02:45]}  Qa5 {[%clk 0:01:56]} 21. Rb3 {[%clk 0:02:44]}  Rbc8 {[%clk 0:01:16]} 22. Bxb5 {[%clk 0:02:29]}  Rxc3 {[%clk 0:01:13]} 23. Rxc3 {[%clk 0:02:28]}  Qxc3 {[%clk 0:01:13]} 24. a4 {[%clk 0:02:29]}  Qd2 {[%clk 0:00:56]} 25. Qxd2 {[%clk 0:02:19]}  Bxd2 {[%clk 0:00:55]} 26. g3 {[%clk 0:02:17]}  Rc8 {[%clk 0:00:50]} 27. f4 {[%clk 0:02:05]}  Rc1 {[%clk 0:00:47]} 28. Rxc1 {[%clk 0:02:04]}  Bxc1 {[%clk 0:00:46]} 29. fxe5 {[%clk 0:01:52]}  Be3+ {[%clk 0:00:45]} 30. Kg2 {[%clk 0:01:51]}  dxe5 {[%clk 0:00:46]} 31. a5 {[%clk 0:01:52]}  Kf8 {[%clk 0:00:45]} 32. a6 {[%clk 0:01:52]}  Ke7 {[%clk 0:00:45]} 33. Bc4 {[%clk 0:01:51]}  g6 {[%clk 0:00:42]} 34. Kf3 {[%clk 0:01:51]}  Bd4 {[%clk 0:00:41]} 35. g4 {[%clk 0:01:52]}  f6 {[%clk 0:00:40]} 36. Bg8 {[%clk 0:01:49]}  h6 {[%clk 0:00:39]} 37. h4 {[%clk 0:01:48]}  Kf8 {[%clk 0:00:33]} 38. Bd5 {[%clk 0:01:46]}  Ke7 {[%clk 0:00:32]} 39. Ke2 {[%clk 0:01:43]}  Kd6 {[%clk 0:00:29]} 40. Bf7 {[%clk 0:01:42]}  g5 {[%clk 0:00:29]} 41. h5 {[%clk 0:01:42]}  Ba7 {[%clk 0:00:23]} 42. Kd3 {[%clk 0:01:42]}  Kc5 {[%clk 0:00:24]} 43. Bd5 {[%clk 0:01:42]}  Bb6 {[%clk 0:00:24]} 44. Kc3 {[%clk 0:01:41]}  Ba7 {[%clk 0:00:23]} 45. Be6 {[%clk 0:01:34]}  Bb6 {[%clk 0:00:23]} 46. Kb3 {[%clk 0:01:35]}  Ba7 {[%clk 0:00:24]} 47. Ka4 {[%clk 0:01:34]}  Bb6 {[%clk 0:00:24]} 48. Bf5 {[%clk 0:01:34]}  Ba7 {[%clk 0:00:24]} 49. Ka5 {[%clk 0:01:34]}  Bb6+ {[%clk 0:00:25]} 50. Ka4 {[%clk 0:01:35]}  Ba7 {[%clk 0:00:26]} 51. Kb3 {[%clk 0:01:34]}  Bb6 {[%clk 0:00:26]} 52. Ka4 {[%clk 0:01:34]} 1/2-1/2


[Site "https://www.chess.com"]

[Event "Titled Tuesday Blitz February 07 Early 2023"]
[White "Prieto Aranguren, Alain"]
[Black "Toczek, Grzegorz"]
[WhiteFideId "2268906"]
[BlackFideId "1106457"]
[WhiteElo "2258"]
[BlackElo "2260"]
[Result "0-1"]
[Round "08"]
[TimeControl "180+2"]
[Date "2023.02.07"]
[WhiteClock "0:01:07"]
[BlackClock "0:00:50"]

1. d4 {[%clk 0:03:00]}  c5 {[%clk 0:02:54]} 2. d5 {[%clk 0:03:00]}  e6 {[%clk 0:02:55]} 3. e4 {[%clk 0:02:54]}  exd5 {[%clk 0:02:55]} 4. exd5 {[%clk 0:02:53]}  d6 {[%clk 0:02:55]} 5. Nf3 {[%clk 0:02:53]}  Nf6 {[%clk 0:02:55]} 6. c4 {[%clk 0:02:50]}  Be7 {[%clk 0:02:53]} 7. Nc3 {[%clk 0:02:48]}  O-O {[%clk 0:02:53]} 8. Bd3 {[%clk 0:02:48]}  Bg4 {[%clk 0:02:41]} 9. O-O {[%clk 0:02:47]}  Nbd7 {[%clk 0:02:41]} 10. Re1 {[%clk 0:02:46]}  Ne5 {[%clk 0:02:37]} 11. Be2 {[%clk 0:02:46]}  Bxf3 {[%clk 0:02:35]} 12. Bxf3 {[%clk 0:02:46]}  Nxc4 {[%clk 0:02:22]} 13. Ne4 {[%clk 0:02:41]}  Ne5 {[%clk 0:02:19]} 14. Ng5 {[%clk 0:02:34]}  h6 {[%clk 0:02:06]} 15. Nh3 {[%clk 0:02:30]}  Nfd7 {[%clk 0:02:00]} 16. Bf4 {[%clk 0:02:28]}  Bf6 {[%clk 0:01:59]} 17. Bh5 {[%clk 0:02:26]}  Re8 {[%clk 0:01:45]} 18. Qd2 {[%clk 0:02:24]}  Nf8 {[%clk 0:01:40]} 19. Rac1 {[%clk 0:02:11]}  Nfg6 {[%clk 0:01:39]} 20. Be3 {[%clk 0:02:07]}  Qd7 {[%clk 0:01:27]} 21. Qd1 {[%clk 0:01:52]}  Qf5 {[%clk 0:01:20]} 22. Rc3 {[%clk 0:01:47]}  c4 {[%clk 0:01:00]} 23. Bd4 {[%clk 0:01:24]}  Nd3 {[%clk 0:00:57]} 24. Rxe8+ {[%clk 0:01:15]}  Rxe8 {[%clk 0:00:57]} 25. Bxf6 {[%clk 0:01:14]}  Re1+ {[%clk 0:00:55]} 26. Qxe1 {[%clk 0:01:14]}  Nxe1 {[%clk 0:00:56]} 27. Bxg6 {[%clk 0:01:10]}  Qxg6 {[%clk 0:00:50]} 28. Bd4 {[%clk 0:01:07]}  Qxg2# {[%clk 0:00:50]} 0-1


[Site "https://www.chess.com"]